bitfinex/quotes_ETHUSD_20250131
["timestamp","ask_amount","ask_price","bid_price","bid_amount"]
[1738348052969,3.7862,3352.7,3351.3,2.98386]
[1738348052970,0.8035,3353.1,3352.4,2.98291]
[1738348053213,0.8035,3353.1,3352.6,2.9827]
[1738348053406,2.9822,3353.3,3352.6,5.96539]
[1738348053711,0.8035,3353.6,3352.7,2.98267]
[1738348053925,6.01237143,3354.0,3353.4,2.98199]
[1738348054082,3.03077143,3354.0,3353.5,2.98187]
[1738348054412,6.01235143,3354.0,3353.4,2.98199]
[1738348054612,2.98161,3353.9,3353.4,2.98199]
[1738348054808,6.01235143,3354.0,3353.2,2.98219]
[1738348054996,2.9816,3353.9,3353.4,2.98203]
[1738348055313,3.70875657,3354.0,3353.5,2.98194]
[1738348055314,3.03077143,3354.0,3353.5,2.98194]
[1738348055513,3.03077143,3354.0,3353.8,2.98161]
[1738348055677,3.03077143,3354.0,3353.5,3.4904494]
[1738348055881,9.79653143,3354.5,3353.9,2.9816]
[1738348056079,6.81539143,3354.5,3353.9,2.9816]
[1738348056303,3.83427143,3354.5,3354.0,2.9815]
[1738348056814,3.83427143,3354.5,3353.7,2.98175]
[1738348056815,6.81536143,3354.5,3353.7,2.9817]
[1738348057003,2.98131,3354.3,3353.5,5.96381]
[1738348057204,2.98162,3353.9,3353.3,2.98207]
[1738348057420,2.98152,3354.0,3353.4,2.98204]
[1738348057714,0.55,3354.3,3353.4,2.98204]
[1738348057879,2.98142,3354.1,3353.6,2.98184]
[1738348058074,2.98142,3354.1,3353.4,5.96402]
[1738348058301,2.98141,3354.2,3353.4,2.98198]
[1738348058532,2.98151,3354.0,3353.4,2.98198]
[1738348058896,3.74127786,3354.2,3353.6,2.98186]
[1738348059499,2.98152,3354.0,3353.4,2.98198]
[1738348059995,2.98152,3354.0,3353.1,3.4904494]
[1738348060224,2.98154,3354.0,3353.4,2.98201]
[1738348060433,2.98157,3354.0,3353.4,2.98201]
[1738348060826,3.74123786,3354.2,3353.6,2.98185]
[1738348061123,0.46690319,3354.4,3353.1,3.4904494]
[1738348061309,0.46690319,3354.4,3354.0,2.98144]
[1738348061514,0.46690319,3354.4,3354.2,2.98132]
[1738348062143,0.46690319,3354.4,3354.3,2.98124]
[1738348064498,0.46690319,3354.4,3354.1,2.98134]
[1738348064932,0.46690319,3354.4,3354.3,2.98124]
[1738348065412,0.6,3355.0,3354.3,2.98124]
[1738348065745,0.46683334,3354.4,3354.3,2.98124]
[1738348066049,2.9808,3354.8,3354.1,2.98138]
[1738348066208,2.9808,3354.8,3354.2,2.98131]
[1738348066408,0.46684182,3354.4,3354.2,2.98131]
[1738348066709,0.46684182,3354.4,3354.0,2.98148]
[1738348066909,0.46684182,3354.4,3353.7,0.7526]
[1738348066910,0.46684182,3354.4,3354.3,2.98124]
[1738348067720,0.46684182,3354.4,3354.3,3.875639]
[1738348068146,0.46684182,3354.4,3354.3,8.18119622]
[1738348068344,0.46684182,3354.4,3354.3,8.1513884]
[1738348070453,0.6,3355.0,3354.7,2.98084]
[1738348071548,0.6,3355.0,3354.5,2.98103]
[1738348071747,0.6,3355.0,3354.8,2.9808]
[1738348072050,0.6,3355.0,3354.9,2.98071]
[1738348077160,0.6,3355.0,3354.8,2.98072]
[1738348077495,0.6,3355.0,3354.8,2.98074]
[1738348077773,0.6,3355.0,3354.9,2.98071]
[1738348079036,0.6,3355.0,3354.9,3.576862]
[1738348080605,0.6,3355.0,3354.9,4.394462]
[1738348080737,1e-05,3355.0,3354.9,7.4242641]
[1738348080936,1e-05,3355.0,3354.9,7.394462]
[1738348083836,1e-05,3355.0,3354.9,7.401962]
[1738348084043,2.9788,3357.1,3356.5,2.97927]
[1738348084349,0.8035,3357.2,3356.5,2.97927]
[1738348084740,0.8035,3357.2,3356.6,2.97919]
[1738348084940,2.97876,3357.1,3356.5,2.97927]
[1738348085444,2.97912,3356.7,3356.1,2.97962]
[1738348085640,3.77518,3356.4,3355.7,5.95989]
[1738348085839,3.77518,3356.4,3355.8,2.97986]
[1738348086065,0.7958,3356.4,3355.3,3.74205]
[1738348086274,0.7958,3356.4,3355.0,3.4904494]
[1738348086275,2.97959,3356.2,3355.6,2.98008]
[1738348086485,0.7958,3356.4,3355.6,2.98008]
[1738348086656,2.97948,3356.3,3355.7,2.97998]
[1738348086862,2.97981,3356.0,3355.4,2.98024]
[1738348087196,2.97988,3355.9,3355.2,2.98042]
[1738348087396,2.97999,3355.8,3355.2,2.98042]
[1738348087540,0.675457,3356.3,3355.2,2.98042]
[1738348087741,0.675457,3356.3,3355.3,2.9803]
[1738348087742,2.97983,3355.9,3355.3,2.9803]
[1738348087940,2.97997,3355.8,3355.1,2.98047]
[1738348088191,2.97997,3355.8,3354.9,1.350152]
[1738348088192,0.55,3355.6,3354.3,2.98119]
[1738348088391,0.8035,3354.9,3354.0,2.98147]
[1738348088553,0.8035,3354.9,3354.4,2.98113]
[1738348088953,0.8035,3354.9,3354.3,2.98123]
[1738348089192,0.8035,3354.9,3354.4,2.98113]
[1738348089856,0.8035,3354.9,3354.3,2.98123]
[1738348089857,3.78422,3354.9,3354.3,2.98123]
[1738348090184,2.98117,3354.4,3353.7,2.98175]
[1738348090382,2.98132,3354.3,3353.7,2.98175]
[1738348090785,2.98117,3354.4,3353.8,2.98169]
[1738348090958,2.98117,3354.4,3353.6,2.98186]
[1738348091157,2.98095,3354.7,3353.4,3.4904494]
[1738348091489,0.762,3354.6,3353.7,2.98174]
[1738348091691,2.98125,3354.3,3353.7,2.98174]
[1738348091867,2.98113,3354.5,3353.8,2.98166]
[1738348092067,2.98119,3354.4,3353.7,2.98174]
[1738348092268,2.98119,3354.4,3353.8,2.98167]
[1738348092493,2.98119,3354.4,3353.7,2.98174]
[1738348092895,3.743,3354.6,3354.0,2.98144]
[1738348093054,3.743,3354.6,3354.1,2.98142]
[1738348093458,3.743,3354.6,3353.7,3.67162743]
[1738348093691,3.743,3354.6,3353.9,2.98153]
[1738348094197,0.762,3354.6,3353.9,2.98153]
[1738348094360,2.98088,3354.8,3354.1,2.98134]
[1738348094560,2.981,3354.6,3353.9,2.98154]
[1738348094798,2.981,3354.6,3353.7,3.67167743]
[1738348094799,0.55,3354.6,3353.7,2.98174]
[1738348095174,0.55,3354.6,3353.9,2.9816]
[1738348095391,0.8035,3354.7,3353.2,3.77826]
[1738348095392,0.8035,3354.7,3354.0,0.0298138]
[1738348095593,0.8035,3354.7,3354.2,2.98128]
[1738348095973,0.8035,3354.7,3353.2,0.7961]
[1738348095974,0.8035,3354.7,3353.4,3.4904494]
[1738348096190,0.55,3354.6,3353.8,2.98163]
[1738348096387,0.55,3354.6,3353.2,0.7961]
[1738348096720,0.55,3354.3,3353.1,2.98231]
[1738348096870,0.55,3354.4,3353.6,2.98186]
[1738348097066,0.55,3354.4,3353.7,2.98173]
[1738348097299,0.55,3354.4,3353.2,0.72779594]
[1738348097300,0.7781,3354.5,3353.8,3.52026569]
[1738348097509,0.7777,3355.0,3354.6,2.98091]
[1738348097804,0.7777,3355.0,3354.4,2.98114]
[1738348098008,1.24452263,3355.0,3354.4,2.98114]
[1738348098305,1.24452263,3355.0,3354.6,2.98092]
[1738348098486,1.24452263,3355.0,3354.4,3.62829894]
[1738348098692,1.24452263,3355.0,3354.4,2.98114]
[1738348099649,1.24452263,3355.0,3354.6,2.98098]
[1738348100245,0.55,3354.9,3353.3,0.8194]
[1738348100538,2.9815,3354.1,3353.2,2.98221]
[1738348100743,0.8035,3354.4,3353.1,2.98229]
[1738348100744,2.98159,3354.0,3353.1,2.98229]
[1738348100970,0.55,3354.3,3352.8,2.98258]
[1738348101121,2.98174,3353.8,3352.8,2.98258]
[1738348101311,2.98184,3353.7,3353.0,2.98237]
[1738348101649,2.98187,3353.6,3353.0,2.98237]
[1738348102034,2.98187,3353.6,3352.8,3.362778]
[1738348102243,2.98197,3353.5,3352.8,0.380198]
[1738348102401,2.98223,3353.2,3352.6,2.98269]
[1738348102606,0.7601,3353.4,3352.6,2.98269]
[1738348102862,2.98233,3353.1,3352.4,2.98292]
[1738348103040,2.9825,3352.9,3352.3,2.983]
[1738348103376,0.7601,3353.4,3352.3,0.94565294]
[1738348103557,2.98227,3353.2,3352.5,2.98284]
[1738348103760,2.98227,3353.2,3352.5,2.98278]
[1738348103919,2.98232,3353.1,3352.5,2.98278]
[1738348104325,3.53221,3353.3,3352.6,2.98274]
[1738348104662,2.98222,3353.2,3352.6,2.98274]
[1738348105139,0.55,3353.3,3352.6,2.98274]
[1738348105326,0.7601,3353.4,3352.6,0.298274]
[1738348105525,2.9819,3353.6,3353.0,2.98239]
[1738348105713,0.8035,3353.7,3353.0,2.98239]
[1738348105919,0.8035,3353.7,3353.2,2.98216]
[1738348106133,1.83061698,3353.4,3353.2,2.98216]
[1738348106332,1.83061698,3353.4,3353.0,2.98239]
[1738348106735,1.83061698,3353.4,3353.1,2.9823]
[1738348107106,1.83061698,3353.4,3353.0,2.98239]
[1738348107304,1.83061698,3353.4,3352.8,2.98256]
[1738348107549,2.98221,3353.3,3352.6,2.98273]
[1738348107713,2.9823,3353.2,3352.6,2.98273]
[1738348107913,2.9823,3353.2,3352.6,3.56062722]
[1738348108114,4.81271698,3353.4,3352.7,2.98258]
[1738348108643,2.98216,3353.3,3352.7,2.98258]
[1738348108847,4.81271698,3353.4,3352.8,2.98251]
[1738348109245,1.83061698,3353.4,3353.0,2.98236]
[1738348109445,0.8035,3353.7,3353.2,2.98221]
[1738348109812,3.7853,3353.7,3353.0,2.98233]
[1738348110212,0.8035,3353.7,3353.3,2.98213]
[1738348110520,3.78529,3353.7,3353.1,2.98225]
[1738348110713,3.48529,3353.7,3353.2,2.98221]
[1738348110913,0.5035,3353.7,3353.2,2.98221]
[1738348111149,3.48534,3353.7,3353.1,3.64415237]
[1738348111850,2.982,3353.5,3353.1,0.66189237]
[1738348112008,0.5035,3353.7,3352.7,2.9826]
[1738348112215,2.98235,3353.1,3352.6,0.57789722]
[1738348112725,2.98214,3353.3,3352.7,2.98259]
[1738348112919,3.48531,3353.7,3352.8,2.98256]
[1738348113133,2.98198,3353.5,3352.9,2.98241]
[1738348113306,2.98198,3353.5,3352.9,3.63669972]
[1738348113916,2.98242,3353.0,3352.6,0.57789722]
[1738348114116,2.98259,3352.8,3352.1,5.96631]
[1738348114319,2.98267,3352.7,3352.1,2.98313]
[1738348114615,2.98259,3352.8,3352.1,2.98313]
[1738348114850,2.98259,3352.8,3352.3,2.98301]
[1738348115288,2.98269,3352.7,3352.1,2.98313]
[1738348115478,2.98259,3352.8,3352.2,3.65626]
[1738348116000,0.5035,3352.9,3352.4,2.98291]
[1738348116169,0.5035,3352.9,3352.2,0.67315]
[1738348116354,0.5035,3352.9,3352.3,2.98298]
[1738348116755,3.486,3352.9,3352.3,2.98298]
[1738348117069,3.486,3352.9,3352.4,2.98292]
[1738348117668,3.486,3352.9,3352.2,2.98309]
[1738348117895,3.486,3352.9,3352.1,2.98316]
[1738348117896,3.486,3352.9,3352.3,2.98299]
[1738348118069,3.486,3352.9,3352.3,3.579605]
[1738348118477,0.5035,3352.9,3352.3,0.596615]
[1738348118675,0.5035,3352.9,3352.3,3.579575]
[1738348118892,0.5035,3352.9,3352.4,2.98286]
[1738348119094,0.5035,3352.9,3352.4,3.6391035]
[1738348119403,3.486,3352.9,3352.4,0.6562435]
[1738348119716,0.5035,3352.9,3352.4,0.6562435]
[1738348120006,0.5035,3352.9,3352.4,3.6391035]
[1738348120208,3.48599,3352.9,3352.4,0.6562435]
[1738348120409,3.48599,3352.9,3352.1,2.98312]
[1738348120410,2.98259,3352.8,3352.1,2.98312]
[1738348120577,2.98276,3352.6,3351.3,0.7633]
[1738348120777,2.98296,3352.4,3351.8,2.98341]
[1738348120985,2.98307,3352.3,3351.6,2.98357]
[1738348121195,2.98296,3352.4,3351.7,3.281907]
[1738348121196,0.5035,3352.2,3351.7,3.281907]
[1738348121389,0.5035,3352.2,3351.9,2.98332]
[1738348121602,0.55,3352.9,3351.7,0.298357]
[1738348121603,0.5035,3352.5,3352.0,2.98326]
[1738348121776,0.5035,3352.5,3352.2,2.98304]
[1738348121977,0.5035,3352.5,3352.3,2.98301]
[1738348122318,0.5035,3352.5,3352.1,2.98314]
[1738348122614,0.5035,3352.8,3352.3,2.98297]
[1738348122773,0.5035,3352.8,3351.9,2.98338]
[1738348122980,0.5035,3352.8,3352.5,2.98279]
[1738348123179,0.9705994,3352.8,3352.6,2.98273]
[1738348123505,0.9705994,3352.8,3352.5,2.98279]
[1738348123814,0.9705994,3352.8,3352.4,2.98291]
[1738348123998,0.9705994,3352.8,3352.3,2.98299]
[1738348124376,0.9705994,3352.8,3352.3,2.98295]
[1738348124611,0.9705994,3352.8,3352.3,3.659673]
[1738348124813,0.9705994,3352.8,3352.4,2.98285]
[1738348125877,0.9705994,3352.8,3352.5,2.98284]
[1738348126115,0.9705994,3352.8,3352.3,3.659673]
[1738348126315,3.9531794,3352.8,3352.3,3.659673]
[1738348126489,2.98274,3352.7,3352.1,2.98319]
[1738348126683,3.9531794,3352.8,3352.1,5.96632]
[1738348126889,3.9531794,3352.8,3352.2,2.98308]
[1738348127319,2.98269,3352.7,3352.2,2.98308]
[1738348127625,0.9705994,3352.8,3352.3,2.98302]
[1738348127823,3.9531794,3352.8,3352.1,2.98313]
[1738348127977,3.9531794,3352.8,3352.1,0.596637]
[1738348127978,2.98277,3352.6,3352.1,0.596637]
[1738348128378,3.9531794,3352.8,3352.1,0.596637]
[1738348128605,2.98267,3352.7,3352.2,2.98305]
[1738348128822,3.9531794,3352.8,3352.2,2.98305]
[1738348129111,2.98283,3352.6,3352.1,3.579797]
[1738348129287,3.9531794,3352.8,3351.8,2.98342]
[1738348129288,0.0075,3352.7,3351.8,2.98342]
[1738348129493,0.0075,3352.7,3351.6,2.98361]
[1738348129693,2.98309,3352.3,3351.7,2.98353]
[1738348129991,2.98309,3352.3,3351.8,2.98345]
[1738348130193,0.55,3352.4,3351.8,2.98345]
[1738348130430,2.98305,3352.3,3351.6,2.98361]
[1738348130588,3.53295,3352.4,3351.6,3.360991]
[1738348130937,3.53295,3352.4,3351.7,2.9835]
[1738348130938,2.98304,3352.3,3351.7,2.9835]
[1738348131230,2.98344,3351.9,3351.3,2.98386]
[1738348132717,3.4867,3352.1,3350.8,0.7811]
[1738348132893,0.5035,3352.4,3351.9,2.9833]
[1738348133090,2.98304,3352.3,3351.7,2.98353]
[1738348133686,2.98304,3352.3,3351.8,2.98343]
[1738348133687,2.98302,3352.3,3351.8,2.98343]
[1738348133887,0.5035,3352.4,3351.5,2.98369]
[1738348134114,2.98326,3352.1,3351.5,2.98369]
[1738348134324,2.98318,3352.2,3351.6,3.281959]
[1738348134533,0.55,3352.3,3351.6,3.281959]
[1738348134690,2.98327,3352.1,3351.6,0.298369]
[1738348135032,2.98327,3352.1,3351.3,2.9839]
[1738348135202,2.98352,3351.8,3351.2,2.98395]
[1738348135392,0.5035,3351.7,3351.1,2.98407]
[1738348136010,2.98366,3351.6,3351.1,2.98407]
[1738348136538,2.98366,3351.6,3351.0,2.98414]
[1738348137337,0.5035,3351.7,3351.0,0.7509292]
[1738348137646,3.48666,3352.2,3351.7,2.98353]
[1738348137860,0.5035,3352.2,3351.8,2.98341]
[1738348138144,2.98281,3352.6,3352.0,2.98328]
[1738348138286,2.98285,3352.5,3352.0,2.98328]
[1738348138491,1.83061698,3352.4,3352.0,2.98328]
[1738348138887,1.83061698,3352.4,3352.1,2.98319]
[1738348139141,1.83061698,3352.4,3352.0,2.98328]
[1738348139512,1.83061698,3352.4,3352.0,3.579954]
[1738348139853,1.83061698,3352.4,3352.0,2.98328]
[1738348140644,1.83061698,3352.4,3352.1,2.98313]
[1738348140845,1.83061698,3352.4,3351.7,5.96712]
[1738348141146,1.83061698,3352.4,3352.3,2.98302]
[1738348142631,2.98254,3352.9,3352.3,5.96604]
[1738348142946,2.98254,3352.9,3352.4,2.98293]
[1738348143140,2.98254,3352.9,3352.3,2.98302]
[1738348143639,2.98254,3352.9,3352.4,2.98289]
[1738348143945,2.98258,3352.8,3352.2,2.98305]
[1738348144343,0.5035,3353.0,3352.3,2.98299]
[1738348144640,0.5035,3353.0,3352.3,2.98302]
[1738348144641,2.98259,3352.8,3352.3,2.98302]
[1738348144999,0.5035,3353.0,3352.3,2.98294]
[1738348145200,2.98259,3352.8,3352.3,2.98299]
[1738348145700,2.98259,3352.8,3352.1,2.98318]
[1738348145701,2.98259,3352.8,3352.2,2.98308]
[1738348146140,2.98278,3352.6,3351.9,2.98334]
[1738348146450,2.9827,3352.7,3351.9,3.281654]
[1738348146756,2.98288,3352.5,3351.9,2.98332]
[1738348146929,2.98308,3352.3,3351.7,2.98351]
[1738348147132,2.98314,3352.2,3351.7,2.98351]
[1738348147328,3.48658,3352.3,3351.5,0.7811]
[1738348147651,2.98331,3352.0,3351.4,2.98374]
[1738348147815,2.98331,3352.0,3351.4,4.00927095]
[1738348148017,2.98317,3352.2,3351.6,2.98358]
[1738348148419,5.96636,3352.2,3351.6,2.98358]
[1738348148616,2.98317,3352.2,3351.6,2.98358]
[1738348148857,5.96636,3352.2,3351.6,2.98358]
[1738348149059,2.98321,3352.1,3351.6,3.6828671]
[1738348149227,2.98321,3352.1,3351.6,0.6992871]
[1738348149430,2.98345,3351.9,3351.4,1.02553095]
[1738348149635,2.98345,3351.9,3351.2,2.98394]
[1738348149831,2.98353,3351.8,3351.2,2.98394]
[1738348150032,2.98357,3351.7,3351.2,2.98394]
[1738348151662,2.98357,3351.7,3351.0,2.98413]
[1738348151837,2.98382,3351.5,3350.9,0.8217]
[1738348152015,2.98382,3351.5,3350.9,3.80591]
[1738348152219,2.98381,3351.5,3350.9,3.80591]
[1738348152464,0.55,3351.5,3350.5,0.8093]
[1738348152760,2.9841,3351.1,3350.5,3.79387]
[1738348152958,2.9841,3351.1,3350.5,0.94882374]
[1738348153263,0.55,3351.5,3350.4,2.98466]
[1738348153264,2.98423,3351.0,3350.4,2.98466]
[1738348153561,2.98423,3351.0,3350.2,5.69445741]
[1738348153562,2.98436,3350.8,3350.2,2.98489]
[1738348153860,2.98418,3351.0,3350.4,2.98464]
[1738348154369,0.5035,3351.1,3349.8,2.98516]
[1738348154370,2.98452,3350.7,3350.0,2.98503]
[1738348154665,2.98436,3350.8,3350.2,2.98488]
[1738348154872,2.98427,3350.9,3350.2,0.86794774]
[1738348155218,2.98433,3350.9,3350.3,2.98478]
[1738348155468,0.5035,3351.1,3350.6,2.98447]
[1738348155622,3.48728,3351.5,3350.5,2.70956741]
[1738348155823,3.48728,3351.5,3350.7,2.98439]
[1738348155824,2.98394,3351.3,3350.7,2.98439]
[1738348156014,3.48728,3351.5,3350.7,0.86784974]
[1738348156217,0.5035,3351.5,3351.0,2.98416]
[1738348156421,2.98388,3351.4,3350.8,2.9843]
[1738348156650,0.5035,3351.5,3350.9,2.9842]
[1738348156835,3.48724,3351.5,3350.9,2.9842]
[1738348157032,2.98391,3351.3,3350.5,2.70956741]
[1738348157233,2.98435,3350.9,3350.2,2.98488]
[1738348157631,1.83061698,3351.1,3349.6,5.98539]
[1738348157632,2.98469,3350.5,3349.9,2.98511]
[1738348157819,2.98469,3350.5,3349.8,3.74533]
[1738348158223,2.98469,3350.5,3349.5,2.70956741]
[1738348158224,2.98519,3349.9,3349.4,3.7457]
[1738348158532,2.985,3350.1,3349.4,3.7457]
[1738348158733,2.98513,3350.0,3349.4,4.418846]
[1738348159170,2.985,3350.1,3349.4,4.418846]
[1738348159338,2.985,3350.1,3349.5,2.9855]
[1738348159543,2.985,3350.1,3349.4,1.433246]
[1738348159544,2.98508,3350.0,3349.4,1.433246]
[1738348159735,2.98508,3350.0,3349.4,4.418826]
[1738348159927,2.98484,3350.3,3349.6,2.98538]
[1738348160329,2.98484,3350.3,3349.7,2.98533]
[1738348160524,2.98463,3350.5,3349.8,2.98519]
[1738348160849,3.48796,3350.7,3350.0,2.98499]
[1738348161050,1.83061698,3350.6,3350.0,2.985]
[1738348161261,1.83061698,3350.6,3350.1,2.98494]
[1738348161429,1.83061698,3350.6,3350.3,2.98475]
[1738348161767,1.83061698,3350.6,3350.5,2.98462]
[1738348162437,1.83061698,3350.6,3350.4,2.98471]
[1738348162655,1.83061698,3350.6,3350.2,2.98482]
[1738348162966,1.83061698,3350.6,3348.9,2.98599]
[1738348162967,2.98504,3350.1,3348.9,2.98599]
[1738348163152,2.98523,3349.9,3349.3,3.00830206]
[1738348163331,2.98523,3349.9,3349.3,0.02262206]
[1738348163673,0.55,3350.0,3349.4,2.98554]
[1738348163829,2.98503,3350.1,3349.4,0.30081621]
[1738348164167,2.98503,3350.1,3349.5,2.98545]
[1738348164794,3.48815,3350.5,3349.8,2.9852]
[1738348164938,0.5035,3350.1,3349.3,0.02262206]
[1738348165145,2.98524,3349.9,3349.3,0.02262206]
[1738348165347,2.98515,3350.0,3349.4,2.98558]
[1738348165668,2.98515,3350.0,3349.3,0.02262206]
[1738348165669,2.98554,3349.5,3349.3,0.02262206]
[1738348165831,2.98553,3349.5,3349.3,0.02262206]
[1738348166168,3.3663191,3350.0,3348.5,0.83333333]
[1738348166169,2.98593,3349.1,3348.5,3.81970333]
[1738348166370,0.5035,3349.0,3348.5,0.83333333]
[1738348166581,2.98631,3348.7,3348.5,0.83333333]
[1738348167070,4.04732,3348.6,3348.5,0.83333333]
[1738348167370,4.05482,3348.6,3348.5,0.83333333]
[1738348168144,2.98685,3348.0,3347.9,3.50653]
[1738348168343,6.77606288,3348.0,3347.9,3.50653]
[1738348168543,3.506535,3348.0,3347.9,3.50653]
[1738348168772,0.7494972,3348.7,3347.9,3.50653]
[1738348169131,3.53661,3348.3,3347.9,3.50653]
[1738348169785,3.53651,3348.4,3347.9,3.50653]
[1738348169993,2.9859,3349.1,3347.9,3.50653]
[1738348170270,2.98626,3348.7,3347.9,3.50653]
[1738348170475,2.98596,3349.1,3348.1,2.9867]
[1738348170626,2.9861,3348.9,3348.2,2.98664]
[1738348170827,2.98552,3349.5,3348.2,2.98664]
[1738348171060,2.98606,3348.9,3348.2,2.98664]
[1738348171266,3.53617,3348.8,3348.1,2.98673]
[1738348171468,3.53614,3348.8,3348.1,2.98673]
[1738348172277,2.98588,3349.1,3348.2,2.98666]
[1738348172482,3.53597,3349.0,3348.2,2.98666]
[1738348172681,3.27201965,3349.4,3348.4,2.98649]
[1738348172884,2.98585,3349.2,3348.4,2.98649]
[1738348173610,0.55,3349.1,3348.6,2.98624]
[1738348173923,0.55,3349.1,3348.4,2.98649]
[1738348174077,0.55,3349.3,3348.4,2.98649]
[1738348174409,2.98588,3349.1,3348.4,2.98649]
[1738348175089,0.55,3349.1,3348.4,2.98642]
[1738348175281,0.55,3349.1,3348.5,2.98639]
[1738348175476,0.55,3349.1,3348.6,2.98631]
[1738348175683,3.20663,3349.4,3348.7,2.98615]
[1738348175883,3.604831,3349.4,3348.7,2.98615]
[1738348176125,3.604831,3349.4,3348.8,2.98612]
[1738348176922,3.604831,3349.4,3348.7,2.98616]
[1738348177073,3.604831,3349.4,3348.5,2.98633]
[1738348177622,3.604831,3349.4,3348.4,0.7824]
[1738348177918,3.604831,3349.4,3348.7,2.9862]
[1738348178298,2.98577,3349.3,3348.6,2.98628]
[1738348178686,2.98563,3349.4,3348.8,2.98613]
[1738348178869,2.98622,3348.8,3347.9,3.50653]
[1738348179231,0.55,3348.9,3348.2,2.98667]
[1738348179366,2.98599,3349.0,3348.3,2.98652]
[1738348179573,2.98591,3349.1,3348.2,3.63599]
[1738348179823,2.98601,3349.0,3348.4,2.98646]
[1738348180187,0.55,3349.2,3348.4,2.98646]
[1738348180378,0.015,3349.1,3347.9,3.50653]
[1738348180592,0.55,3348.4,3347.9,3.50653]
[1738348180807,2.98627,3348.7,3348.1,2.98676]
[1738348181005,5.97174,3349.1,3348.0,2.98685]
[1738348181206,5.97174,3349.1,3347.9,3.50653]
[1738348181207,3.53621,3348.8,3348.1,2.9867]
[1738348181412,2.98599,3349.0,3348.4,2.98646]
[1738348181609,2.98586,3349.2,3348.4,2.98643]
[1738348181916,0.2265,3349.4,3348.5,2.98634]
[1738348181917,2.98593,3349.1,3348.5,2.98634]
[1738348182072,0.55,3349.2,3348.7,2.98618]
[1738348182272,2.98524,3349.9,3348.7,2.98618]
[1738348182273,3.49052788,3350.2,3348.8,2.98614]
[1738348182573,6.02819965,3350.5,3349.8,2.98518]
[1738348182787,2.98487,3350.3,3349.6,2.98536]
[1738348182985,2.98502,3350.1,3349.5,3.81195]
[1738348183189,2.98502,3350.1,3349.4,2.9856]
[1738348183540,0.596984,3350.1,3349.6,2.98537]
[1738348183694,2.98489,3350.2,3349.6,2.98537]
[1738348183900,6.02814965,3350.5,3349.8,2.98519]
[1738348184413,3.04351965,3350.5,3349.8,2.98519]
[1738348184588,2.98473,3350.4,3349.8,2.98519]
[1738348185119,2.98473,3350.4,3349.9,2.98515]
[1738348185338,3.04351965,3350.5,3350.0,2.98502]
[1738348185540,3.04351965,3350.5,3350.2,2.98482]
[1738348185683,3.04351965,3350.5,3350.4,2.98471]
[1738348185883,2.98385,3351.4,3350.4,2.98471]
[1738348185884,2.98398,3351.3,3350.6,2.98453]
[1738348186107,2.98405,3351.2,3350.6,2.98453]
[1738348186543,2.98405,3351.2,3350.6,2.09103094]
[1738348186788,0.0075,3351.1,3349.8,2.98519]
[1738348187120,2.98468,3350.5,3349.9,2.98507]
[1738348187285,2.98448,3350.7,3350.0,2.98506]
[1738348187485,2.98448,3350.7,3350.0,2.98499]
[1738348187685,2.98428,3350.9,3350.2,2.98489]
[1738348187938,2.98436,3350.8,3350.2,2.98489]
[1738348188141,3.581324,3350.7,3350.0,2.98499]
[1738348188725,0.596864,3350.7,3349.7,0.7882]
[1738348188922,0.74699512,3353.1,3350.6,2.9845]
[1738348188923,2.98398,3351.3,3350.6,2.9845]
[1738348189245,2.98398,3351.3,3350.4,2.98464]
[1738348189246,2.98414,3351.1,3350.4,2.98464]
[1738348189424,2.98418,3351.0,3350.4,2.98464]
[1738348189605,2.98474,3350.4,3349.7,2.98528]
[1738348189802,2.98481,3350.3,3349.7,2.98528]
[1738348190007,2.98481,3350.3,3349.5,2.9855]
[1738348190008,2.98481,3350.3,3349.8,2.98525]
[1738348190207,2.98481,3350.3,3349.5,2.98548]
[1738348190509,2.98481,3350.3,3349.6,2.98536]
[1738348190845,2.9849,3350.2,3349.5,2.98548]
[1738348191051,2.98481,3350.3,3349.5,2.98548]
[1738348191331,2.98481,3350.3,3349.0,3.76494]
[1738348191332,2.98533,3349.8,3349.0,3.76494]
[1738348191503,2.9851,3350.0,3349.0,0.779]
[1738348191704,2.9851,3350.0,3349.3,2.98563]
[1738348192032,2.9853,3349.8,3349.1,2.98582]
[1738348192205,2.9853,3349.8,3349.2,2.98578]
[1738348192610,0.59704,3349.8,3349.2,2.98578]
[1738348192825,0.55,3349.9,3349.2,2.98578]
[1738348193129,0.2285,3350.7,3349.0,0.779]
[1738348193309,5.96854,3350.9,3349.8,2.9852]
[1738348193490,2.98473,3350.4,3349.8,2.9852]
[1738348193892,2.98457,3350.6,3349.9,2.98514]
[1738348194123,3.636565,3350.5,3349.9,2.98514]
[1738348194440,2.98473,3350.4,3349.9,2.98514]
[1738348194651,2.98473,3350.4,3349.8,2.98518]
[1738348194828,2.98473,3350.4,3349.7,2.9853]
[1738348195012,2.98554,3349.5,3348.6,2.98625]
[1738348195216,2.98579,3349.2,3348.6,2.98625]
[1738348195600,2.98605,3348.9,3348.2,2.9866]
[1738348195796,2.98624,3348.7,3348.1,2.98671]
[1738348196199,2.98634,3348.6,3348.1,2.98671]
[1738348196523,2.98634,3348.6,3347.9,6.49345]
[1738348196524,2.98649,3348.5,3347.9,6.4934]
[1738348196729,2.98655,3348.4,3347.9,3.50653]
[1738348197234,3.583638,3348.6,3347.9,6.49343]
[1738348197409,0.5575,3348.5,3347.9,3.50653]
[1738348197735,2.98685,3348.0,3347.9,3.50653]